fUSD/lending_fUSD_20250204
["ID","MTS","AMOUNT","RATE_DAILY","PERIOD"]
[351585376,1738647050034,-256.92442011,8.798e-05,2]
[351585377,1738647050044,-500.0,8.798e-05,2]
[351585378,1738647050053,-2498.45,8.798e-05,2]
[351585379,1738647050063,-500.0,8.798e-05,2]
[351585380,1738647050072,-500.0,8.798e-05,2]
[351585381,1738647050082,-1279.79,8.798e-05,2]
[351585382,1738647050092,-500.0,8.798e-05,2]
[351585383,1738647050102,-845.68,8.798e-05,2]
[351585384,1738647050112,-1217.56,8.798e-05,2]
[351585385,1738647050121,-862.22,8.798e-05,2]
[351585386,1738647050134,-500.0,8.798e-05,2]
[351585387,1738647050142,-500.0,8.798e-05,2]
[351585388,1738647050152,-500.0,8.798e-05,2]
[351585389,1738647050162,-619.68,8.798e-05,2]
[351585390,1738647050172,-500.0,8.798e-05,2]
[351585391,1738647050181,-1358.15,8.798e-05,2]
[351585392,1738647050190,-500.0,8.798e-05,2]
[351585393,1738647050200,-2129.69,8.798e-05,2]
[351585394,1738647050209,-500.0,8.798e-05,2]
[351585395,1738647050219,-1473.23,8.798e-05,2]
[351585396,1738647050228,-1133.55,8.798e-05,2]
[351585397,1738647050237,-500.0,8.798e-05,2]
[351585398,1738647050247,-812.41,8.798e-05,2]
[351585399,1738647050256,-500.0,8.798e-05,2]
[351585400,1738647050266,-500.0,8.798e-05,2]
[351585401,1738647050274,-1475.42,8.798e-05,2]
[351585402,1738647050283,-500.0,8.798e-05,2]
[351585403,1738647050292,-1322.34,8.798e-05,2]
[351585404,1738647050300,-500.0,8.798e-05,2]
[351585405,1738647050309,-598.49,8.798e-05,2]
[351585406,1738647050318,-500.0,8.798e-05,2]
[351585407,1738647050327,-1570.35,8.798e-05,2]
[351585408,1738647050336,-500.0,8.798e-05,2]
[351585409,1738647050345,-791.01,8.798e-05,2]
[351585410,1738647050354,-500.0,8.798e-05,2]
[351585411,1738647050363,-500.0,8.798e-05,2]
[351585412,1738647050372,-452.60203604,8.798e-05,2]
[351585413,1738647050389,-47.39796396,8.798e-05,2]
[351585414,1738647050398,-500.0,8.798e-05,2]
[351585415,1738647050408,-104.5520346,8.798e-05,2]
[351585416,1738647050423,-395.4479654,8.798e-05,2]
[351585417,1738647050434,-500.0,8.798e-05,2]
[351585418,1738647050445,-726.75,8.798e-05,2]
[351585419,1738647050455,-500.0,8.798e-05,2]
[351585420,1738647050465,-500.0,8.798e-05,2]
[351585421,1738647050479,-500.0,8.798e-05,2]
[351585422,1738647050489,-777.03,8.798e-05,2]
[351585423,1738647050498,-1813.47,8.798e-05,2]
[351585424,1738647050508,-500.0,8.798e-05,2]
[351585425,1738647050518,-500.0,8.798e-05,2]
[351585426,1738647050528,-1377.37,8.798e-05,2]
[351585427,1738647050537,-500.0,8.798e-05,2]
[351585428,1738647050547,-500.0,8.798e-05,2]
[351585429,1738647050557,-500.0,8.798e-05,2]
[351585430,1738647050566,-278.9320346,8.798e-05,2]
[351585431,1738647235002,204.12,7.737e-05,2]
[351585432,1738647243026,209.50109763,0.000189,120]
[351585433,1738647304044,241.0,7.737e-05,30]
[351585434,1738647304339,241.0,8.488e-05,30]
[351585435,1738647304682,241.0,9.238e-05,30]
[351585436,1738647305099,241.0,9.989e-05,30]
[351585437,1738647305323,241.0,0.0001074,30]
[351585439,1738647389835,500.0,8.798e-05,7]
[351585440,1738647390096,500.0,8.935e-05,7]
[351585442,1738647517424,23900.0,7.741e-05,2]
[351585443,1738647603416,181.0,7.737e-05,30]
[351585444,1738647603850,181.0,8.488e-05,30]
[351585445,1738647604184,181.0,9.238e-05,30]
[351585446,1738647605042,181.0,9.989e-05,30]
[351585447,1738647605423,181.0,0.0001074,30]
[351585448,1738647903519,151.0,7.737e-05,30]
[351585449,1738647903853,151.0,8.576e-05,30]
[351585450,1738647904177,151.0,9.415e-05,30]
[351585451,1738647904523,151.0,0.00010254,30]
[351585452,1738647904857,151.0,0.00011093,30]
[351585453,1738648054458,-150.0,8.192e-05,2]
[351585454,1738648054483,-150.0,8.205e-05,2]
[351585455,1738648054506,-1000.0,8.219e-05,2]
[351585456,1738648054529,-163.95,8.219e-05,2]
[351585457,1738648054552,-2078.24,8.219e-05,2]
[351585458,1738648054574,-250.0,8.219e-05,2]
[351585459,1738648054596,-788.69,8.219e-05,2]
[351585460,1738648054617,-1292.47726521,8.22e-05,2]
[351585461,1738648116442,495.65,7.795e-05,2]
[351585462,1738648203414,151.0,7.737e-05,30]
[351585463,1738648203846,151.0,8.926e-05,30]
[351585464,1738648204214,151.0,0.00010114,30]
[351585469,1738648218078,500.0,8.795e-05,7]
[351585470,1738648218423,500.0,8.932e-05,7]
[351585472,1738648231854,-294.85305,8.219e-05,2]
[351585473,1738648231978,-705.14695,8.219e-05,2]
[351585474,1738648231988,-307.52273479,8.22e-05,2]
[351585475,1738648231998,-4300.0,8.22e-05,2]
[351585476,1738648232008,-150.0,8.265e-05,2]
[351585477,1738648232018,-1800.0,8.5e-05,3]
[351585478,1738648232027,-960.65823438,8.5e-05,2]
[351585479,1738648232037,-250.0,8.519e-05,2]
[351585480,1738648232047,-3600.0,8.6e-05,3]
[351585481,1738648232060,-1350.0854,8.692e-05,2]
[351585482,1738648232070,-2492.361,8.694e-05,2]
[351585483,1738648232079,-154.5369,8.694e-05,2]
[351585484,1738648232090,-2500.0,8.694e-05,2]
[351585485,1738648232099,-150.99,8.694e-05,2]
[351585486,1738648232109,-388.5185,8.695e-05,2]
[351585487,1738648232119,-5561.7169,8.695e-05,2]
[351585488,1738648232128,-6922.8754,8.698e-05,2]
[351585489,1738648232138,-150.0,8.699e-05,2]
[351585490,1738648232148,-5400.0,8.7e-05,3]
[351585491,1738648232157,-152.0,8.746e-05,3]
[351585492,1738648232167,-253.075,8.747e-05,2]
[351585493,1738648232176,-253.075,8.748e-05,2]
[351585494,1738648232186,-1799.03159282,8.759e-05,2]
[351585495,1738648232197,-13323.5892953,8.759e-05,2]
[351585496,1738648232207,-253.075,8.76e-05,2]
[351585497,1738648232216,-253.075,8.762e-05,2]
[351585498,1738648232224,-265.92648252,8.766e-05,2]
[351585499,1738648232233,-495.65,8.769e-05,2]
[351585500,1738648232241,-170.1841432,8.773e-05,2]
[351585501,1738648232249,-159.46087893,8.773e-05,2]
[351585502,1738648232257,-151.28852763,8.773e-05,2]
[351585503,1738648232265,-265.92648252,8.781e-05,2]
[351585504,1738648232274,-265.92648252,8.784e-05,2]
[351585505,1738648232282,-2014.227,8.784e-05,2]
[351585506,1738648232290,-2440.72499339,8.785e-05,2]
[351585507,1738648232304,-8293.72,8.785e-05,2]
[351585508,1738648232391,-3950.36,8.785e-05,2]
[351585517,1738648232470,-363.36010393,8.785e-05,2]
[351585520,1738648232493,-74.4557908,8.785e-05,2]
[351585523,1738648232510,-472.45727665,8.786e-05,2]
[351585649,1738648237792,-945.32732888,8.786e-05,2]
[351585650,1738648237802,-207.49261314,8.789e-05,2]
[351585651,1738648237828,-2395.47877252,8.789e-05,2]
[351585652,1738648237911,-1456.17440791,8.789e-05,2]
[351585653,1738648238010,-1895.84710533,8.789e-05,2]
[351585654,1738648238020,-6271.3002383,8.789e-05,2]
[351585655,1738648238031,-546.16403884,8.789e-05,2]
[351585656,1738648238042,-14675.50828366,8.789e-05,2]
[351585657,1738648238051,-1272.0,8.791e-05,2]
[351585658,1738648238065,-2023.0,8.791e-05,2]
[351585659,1738648238075,-150.0,8.791e-05,2]
[351585660,1738648238085,-568.0,8.791e-05,2]
[351585661,1738648238094,-638.0,8.791e-05,2]
[351585662,1738648238104,-1826.0,8.791e-05,2]
[351585663,1738648238113,-1264.0,8.791e-05,2]
[351585664,1738648238123,-2953.0,8.791e-05,2]
[351585665,1738648238132,-783.0,8.791e-05,2]
[351585666,1738648238142,-907.0,8.791e-05,2]
[351585667,1738648238151,-539.0,8.791e-05,2]
[351585668,1738648238160,-1324.0,8.791e-05,2]
[351585670,1738648238169,-1007.0,8.791e-05,2]
[351585672,1738648238179,-3911.0,8.791e-05,2]
[351585674,1738648238188,-150.0,8.791e-05,2]
[351585676,1738648238197,-1108.0,8.791e-05,2]
[351585678,1738648238207,-15122.62088812,8.792e-05,2]
[351585698,1738648238360,-500.0,8.793e-05,2]
[351585702,1738648238415,-500.0,8.793e-05,2]
[351585704,1738648238425,-643.03,8.793e-05,2]
[351585706,1738648238434,-500.0,8.793e-05,2]
[351585708,1738648238443,-500.0,8.793e-05,2]
[351585710,1738648238454,-1155.04,8.793e-05,2]
[351585712,1738648238463,-500.0,8.793e-05,2]
[351585714,1738648238472,-648.83,8.793e-05,2]
[351585717,1738648238482,-500.0,8.793e-05,2]
[351585718,1738648238491,-643.38106659,8.793e-05,2]
[351585720,1738648238500,-500.0,8.793e-05,2]
[351585722,1738648238510,-500.0,8.793e-05,2]
[351585724,1738648238519,-1349.16,8.793e-05,2]
[351585726,1738648238528,-500.0,8.793e-05,2]
[351585728,1738648238538,-500.0,8.793e-05,2]
[351585729,1738648238547,-500.0,8.793e-05,2]
[351585730,1738648238560,-500.0,8.793e-05,2]
[351585731,1738648238570,-502.07776132,8.793e-05,2]
[351585732,1738648238579,-500.0,8.793e-05,2]
[351585733,1738648238589,-500.0,8.793e-05,2]
[351585734,1738648238598,-501.13568394,8.793e-05,2]
[351585735,1738648238606,-500.63533267,8.793e-05,2]
[351585736,1738648238614,-506.54,8.793e-05,2]
[351585737,1738648238622,-500.0,8.793e-05,2]
[351585738,1738648238631,-500.80698544,8.793e-05,2]
[351585739,1738648238640,-598.34,8.793e-05,2]
[351585740,1738648238649,-815.69,8.793e-05,2]
[351585741,1738648238658,-500.0,8.793e-05,2]
[351585743,1738648238668,-502.16456608,8.793e-05,2]
[351585745,1738648238677,-501.64779158,8.793e-05,2]
[351585747,1738648238687,-500.0,8.793e-05,2]
[351585749,1738648238695,-322.84158487,8.793e-05,2]
[351585751,1738648238704,-500.0,8.793e-05,2]
[351585753,1738648238713,-500.0,8.793e-05,2]
[351585755,1738648238721,-500.0,8.793e-05,2]
[351585757,1738648238731,-500.0,8.793e-05,2]
[351585759,1738648238739,-502.88614653,8.793e-05,2]
[351585761,1738648238748,-500.0,8.793e-05,2]
[351585763,1738648238757,-500.0,8.793e-05,2]
[351585765,1738648238766,-500.0,8.793e-05,2]
[351585767,1738648238775,-691.73,8.793e-05,2]
[351585769,1738648238785,-500.0,8.793e-05,2]
[351585771,1738648238794,-768.14,8.793e-05,2]
[351585773,1738648238803,-500.0,8.793e-05,2]
[351585775,1738648238816,-500.0,8.793e-05,2]
[351585777,1738648238825,-500.0,8.793e-05,2]
[351585779,1738648238834,-500.0,8.793e-05,2]
[351585781,1738648238843,-500.0,8.793e-05,2]
[351585783,1738648238856,-500.0,8.793e-05,2]
[351585785,1738648238865,-500.0,8.793e-05,2]
[351585787,1738648238874,-500.0,8.793e-05,2]
[351585789,1738648238884,-500.0,8.793e-05,2]
[351585791,1738648238894,-500.0,8.793e-05,2]
[351585793,1738648238903,-500.0,8.793e-05,2]
[351585795,1738648238913,-500.0,8.793e-05,2]
[351585797,1738648238923,-552.59741041,8.793e-05,2]
[351585799,1738648238933,-1125.53,8.793e-05,2]
[351585801,1738648238942,-500.0,8.793e-05,2]
[351585803,1738648238952,-500.0,8.793e-05,2]
[351585805,1738648238962,-500.0,8.793e-05,2]
[351585807,1738648238971,-500.0,8.793e-05,2]
[351585808,1738648238981,-500.0,8.793e-05,2]
[351585811,1738648238990,-500.0,8.793e-05,2]
[351585812,1738648239000,-500.0,8.793e-05,2]
[351585815,1738648239009,-811.65,8.793e-05,2]
[351585816,1738648239019,-500.0,8.793e-05,2]
[351585818,1738648239028,-626.09,8.793e-05,2]
[351585820,1738648239038,-504.13696797,8.793e-05,2]
[351585823,1738648239048,-500.0,8.793e-05,2]
[351585824,1738648239062,-507.29752654,8.793e-05,2]
[351585826,1738648239071,-500.0,8.793e-05,2]
[351585828,1738648239081,-500.0,8.793e-05,2]
[351585830,1738648239090,-500.0,8.793e-05,2]
[351585832,1738648239099,-500.0,8.793e-05,2]
[351585835,1738648239109,-1003.96,8.793e-05,2]
[351585837,1738648239119,-500.0,8.793e-05,2]
[351585839,1738648239128,-500.0,8.793e-05,2]
[351585841,1738648239137,-500.0,8.793e-05,2]
[351585842,1738648239146,-565.45,8.793e-05,2]
[351585844,1738648239156,-524.31263148,8.793e-05,2]
[351585847,1738648239165,-2849.54,8.793e-05,2]
[351585849,1738648239175,-500.0,8.793e-05,2]
[351585851,1738648239185,-518.91398945,8.793e-05,2]
[351585852,1738648239195,-500.0,8.793e-05,2]
[351585854,1738648239204,-500.0,8.793e-05,2]
[351585856,1738648239213,-569.52,8.793e-05,2]
[351585859,1738648239223,-563.72,8.793e-05,2]
[351585860,1738648239233,-2665.86,8.793e-05,2]
[351585863,1738648239242,-1858.18,8.793e-05,2]
[351585864,1738648239251,-500.0,8.793e-05,2]
[351585867,1738648239261,-500.0,8.793e-05,2]
[351585868,1738648239271,-500.0,8.793e-05,2]
[351585871,1738648239281,-755.26,8.793e-05,2]
[351585872,1738648239291,-500.0,8.793e-05,2]
[351585875,1738648239300,-3538.31,8.793e-05,2]
[351585877,1738648239314,-1975.31,8.793e-05,2]
[351585879,1738648239324,-500.0,8.793e-05,2]
[351585881,1738648239334,-501.54215268,8.793e-05,2]
[351585883,1738648239344,-500.0,8.793e-05,2]
[351585884,1738648239353,-4065.57,8.793e-05,2]
[351585886,1738648239363,-500.89,8.793e-05,2]
[351585888,1738648239373,-500.0,8.793e-05,2]
[351585890,1738648239382,-500.0,8.793e-05,2]
[351585892,1738648239392,-3027.2,8.793e-05,2]
[351585894,1738648239401,-500.0,8.793e-05,2]
[351585896,1738648239410,-1407.99,8.793e-05,2]
[351585898,1738648239419,-500.0,8.793e-05,2]
[351585900,1738648239428,-500.0,8.793e-05,2]
[351585902,1738648239438,-501.86322651,8.793e-05,2]
[351585904,1738648239447,-500.0,8.793e-05,2]
[351585906,1738648239456,-502.66191215,8.793e-05,2]
[351585908,1738648239466,-501.9530557,8.793e-05,2]
[351585910,1738648239475,-500.0,8.793e-05,2]
[351585912,1738648239485,-3088.34,8.793e-05,2]
[351585914,1738648239495,-500.0,8.793e-05,2]
[351585917,1738648239505,-500.0,8.793e-05,2]
[351585919,1738648239514,-2211.19,8.793e-05,2]
[351585920,1738648239523,-500.6705626,8.793e-05,2]
[351585922,1738648239532,-500.0,8.793e-05,2]
[351585924,1738648239542,-502.16590409,8.793e-05,2]
[351585926,1738648239551,-500.0,8.793e-05,2]
[351585929,1738648239566,-556.75,8.793e-05,2]
[351585931,1738648239575,-1134.88,8.793e-05,2]
[351585932,1738648239585,-500.0,8.793e-05,2]
[351585934,1738648239594,-1557.23,8.793e-05,2]
[351585936,1738648239604,-500.0,8.793e-05,2]
[351585939,1738648239614,-502.13537187,8.793e-05,2]
[351585941,1738648239623,-748.23,8.793e-05,2]
[351585942,1738648239632,-500.0,8.793e-05,2]
[351585945,1738648239642,-500.0,8.793e-05,2]
[351585947,1738648239651,-3793.17,8.793e-05,2]
[351585949,1738648239661,-500.0,8.793e-05,2]
[351585951,1738648239671,-500.0,8.793e-05,2]
[351585953,1738648239681,-502.04924015,8.793e-05,2]
[351585956,1738648239691,-500.0,8.793e-05,2]
[351585958,1738648239700,-500.0,8.793e-05,2]
[351585961,1738648239710,-500.0,8.793e-05,2]
[351585962,1738648239720,-2975.87,8.793e-05,2]
[351585965,1738648239729,-813.63,8.793e-05,2]
[351585966,1738648239738,-500.0,8.793e-05,2]
[351585969,1738648239748,-2752.97,8.793e-05,2]
[351585971,1738648239757,-500.0,8.793e-05,2]
[351585973,1738648239767,-500.0,8.793e-05,2]
[351585974,1738648239776,-616.29,8.793e-05,2]
[351585976,1738648239785,-500.0,8.793e-05,2]
[351585978,1738648239795,-3256.15,8.793e-05,2]
[351585980,1738648239805,-501.86650773,8.793e-05,2]
[351585982,1738648239818,-500.0,8.793e-05,2]
[351585984,1738648239828,-3004.66,8.793e-05,2]
[351585985,1738648239838,-500.0,8.793e-05,2]
[351585986,1738648239848,-500.0,8.793e-05,2]
[351585987,1738648239858,-314.13513949,8.793e-05,2]
[351585988,1738648239876,-186.31823216,8.793e-05,2]
[351585989,1738648239886,-64.0830167,8.793e-05,2]
[351585990,1738648239898,-435.9169833,8.793e-05,2]
[351585991,1738648239908,-288.59225318,8.793e-05,2]
[351585992,1738648239918,-570.94,8.793e-05,2]
[351585993,1738648239927,-500.0,8.793e-05,2]
[351585994,1738648239939,-500.0,8.793e-05,2]
[351585995,1738648239949,-500.0,8.793e-05,2]
[351585996,1738648239959,-1050.18,8.793e-05,2]
[351585997,1738648239969,-3439.35,8.793e-05,2]
[351585998,1738648239979,-500.0,8.793e-05,2]
[351585999,1738648239990,-502.01324341,8.793e-05,2]
[351586000,1738648240001,-130.31944965,8.793e-05,2]
[351586001,1738648240013,-369.68055035,8.793e-05,2]
[351586002,1738648240023,-470.3226187,8.793e-05,2]
[351586003,1738648240035,-45.07100982,8.793e-05,2]
[351586004,1738648240045,-220.46811437,8.793e-05,2]
[351586005,1738648240060,-345.78188563,8.793e-05,2]
[351586006,1738648240070,-500.0,8.793e-05,2]
[351586007,1738648240080,-672.05,8.793e-05,2]
[351586008,1738648240090,-500.0,8.793e-05,2]
[351586009,1738648240100,-500.0,8.793e-05,2]
[351586010,1738648240110,-500.0,8.793e-05,2]
[351586011,1738648240120,-500.0,8.793e-05,2]
[351586012,1738648240130,-500.0,8.793e-05,2]
[351586013,1738648240141,-2913.16,8.793e-05,2]
[351586014,1738648240150,-500.0,8.793e-05,2]
[351586015,1738648240160,-500.0,8.793e-05,2]
[351586016,1738648240170,-500.0,8.793e-05,2]
[351586017,1738648240180,-717.06,8.793e-05,2]
[351586018,1738648240190,-577.71602839,8.793e-05,2]
[351586020,1738648240202,-335.99932183,8.793e-05,2]
[351586021,1738648240214,-1676.58057342,8.793e-05,2]
[351586022,1738648240226,-391.29407636,8.793e-05,2]
[351586023,1738648240236,-500.0,8.793e-05,2]
[351586024,1738648240246,-2380.9897671,8.793e-05,2]
[351586025,1738648240286,-266.4602329,8.793e-05,2]
[351586026,1738648240299,-157.29826642,8.793e-05,2]
[351586027,1738648240315,-67.61650068,8.793e-05,2]
[351586028,1738648240879,-274.45926599,8.793e-05,2]
[351586029,1738648240899,-162.33834806,8.793e-05,2]
[351586030,1738648240909,-500.0,8.793e-05,2]
[351586031,1738648240919,-44.88074865,8.793e-05,2]
[351586032,1738648240962,-385.95255073,8.793e-05,2]
[351586033,1738648240974,-69.16670062,8.793e-05,2]
[351586034,1738648240984,-435.77409783,8.793e-05,2]
[351586035,1738648240995,-64.22590217,8.793e-05,2]
[351586036,1738648241005,-500.0,8.793e-05,2]
[351586037,1738648241015,-500.0,8.793e-05,2]
[351586038,1738648241025,-603.62,8.793e-05,2]
[351586039,1738648241035,-824.99,8.793e-05,2]
[351586040,1738648241045,-1461.73,8.793e-05,2]
[351586041,1738648241055,-527.93,8.793e-05,2]
[351586042,1738648241069,-500.0,8.793e-05,2]
[351586043,1738648241079,-1272.23,8.793e-05,2]
[351586044,1738648241089,-500.0,8.793e-05,2]
[351586045,1738648241099,-500.0,8.793e-05,2]
[351586046,1738648241108,-500.0,8.793e-05,2]
[351586047,1738648241118,-500.0,8.793e-05,2]
[351586048,1738648241128,-500.0,8.793e-05,2]
[351586049,1738648241138,-500.0,8.793e-05,2]
[351586050,1738648241148,-500.0,8.793e-05,2]
[351586051,1738648241158,-560.64816295,8.793e-05,2]
[351586052,1738648241167,-666.0,8.793e-05,2]
[351586053,1738648241176,-155.468499,8.794e-05,2]
[351586054,1738648241186,-2189.835856,8.794e-05,2]
[351586055,1738648241345,-2205.621471,8.794e-05,2]
[351586056,1738648241389,-155.639737,8.794e-05,2]
[351586057,1738648241399,-500.0,8.794e-05,2]
[351586058,1738648241409,-500.0,8.794e-05,2]
[351586059,1738648241419,-2376.94,8.794e-05,2]
[351586060,1738648241428,-158.16769,8.794e-05,2]
[351586061,1738648241438,-500.0,8.794e-05,2]
[351586062,1738648241447,-500.0,8.794e-05,2]
[351586063,1738648241457,-501.56667085,8.794e-05,2]
[351586064,1738648241467,-1341.67,8.794e-05,2]
[351586065,1738648241476,-501.47524462,8.794e-05,2]
[351586066,1738648241486,-2038.00253456,8.794e-05,2]
[351586067,1738648242130,-407.69746544,8.794e-05,2]
[351586068,1738648242140,-500.74784526,8.794e-05,2]
[351586069,1738648242150,-501.63261543,8.794e-05,2]
[351586070,1738648242159,-189.92207387,8.794e-05,2]
[351586071,1738648242286,-568.77792613,8.794e-05,2]
[351586072,1738648242296,-216.40311089,8.794e-05,2]
[351586073,1738648242305,-500.0,8.794e-05,2]
[351586074,1738648242319,-613.71740559,8.794e-05,2]
[351586075,1738648242329,-501.39492567,8.794e-05,2]
[351586076,1738648242338,-1575.04,8.794e-05,2]
[351586077,1738648242348,-503.63466122,8.794e-05,2]
[351586078,1738648242358,-500.0,8.794e-05,2]
[351586079,1738648242367,-500.62074771,8.794e-05,2]
[351586080,1738648242376,-343.41122279,8.794e-05,2]
[351586153,1738648243371,-1231.93,8.793e-05,2]
[351586155,1738648243381,-1134.47,8.793e-05,2]
[351586157,1738648243390,-308.05877721,8.794e-05,2]
[351586159,1738648243400,-576.88,8.794e-05,2]
[351586161,1738648243409,-1253.38,8.794e-05,2]
[351586163,1738648243418,-356.23044052,8.794e-05,2]
[351586173,1738648243668,-500.85157434,8.794e-05,2]
[351586174,1738648243678,-500.0,8.794e-05,2]
[351586175,1738648243687,-1586.62,8.794e-05,2]
[351586176,1738648243697,-500.65885845,8.794e-05,2]
[351586177,1738648243706,-500.0,8.794e-05,2]
[351586178,1738648243716,-500.0,8.794e-05,2]
[351586179,1738648243725,-2134.2,8.794e-05,2]
[351586180,1738648243735,-500.0,8.794e-05,2]
[351586181,1738648243744,-501.73158438,8.794e-05,2]
[351586182,1738648243754,-501.29300861,8.794e-05,2]
[351586183,1738648243763,-500.0,8.794e-05,2]
[351586184,1738648243772,-1965.13,8.794e-05,2]
[351586185,1738648243782,-501.37581641,8.794e-05,2]
[351586186,1738648243791,-501.48459655,8.794e-05,2]
[351586187,1738648243800,-501.36103936,8.794e-05,2]
[351586188,1738648243811,-500.27885446,8.794e-05,2]
[351586189,1738648243820,-1842.96,8.794e-05,2]
[351586190,1738648243830,-500.43783297,8.794e-05,2]
[351586191,1738648243839,-1223.58,8.794e-05,2]
[351586192,1738648243849,-500.71673199,8.794e-05,2]
[351586193,1738648243858,-500.94846346,8.794e-05,2]
[351586194,1738648243872,-500.0,8.794e-05,2]
[351586195,1738648243881,-503.18755318,8.794e-05,2]
[351586196,1738648243891,-1308.56,8.794e-05,2]
[351586197,1738648243901,-466.07729699,8.794e-05,2]
[351586198,1738648243965,-34.64198958,8.794e-05,2]
[351586199,1738648243974,-500.0,8.794e-05,2]
[351586200,1738648243984,-1485.91,8.794e-05,2]
[351586201,1738648243993,-911.73,8.794e-05,2]
[351586202,1738648244003,-619.26304612,8.794e-05,2]
[351586203,1738648244013,-500.84167546,8.794e-05,2]
[351586204,1738648244023,-500.0,8.794e-05,2]
[351586205,1738648244032,-500.0,8.794e-05,2]
[351586206,1738648244042,-500.0,8.794e-05,2]
[351586207,1738648244053,-1612.49,8.794e-05,2]
[351586208,1738648244066,-509.97137665,8.794e-05,2]
[351586209,1738648244076,-1719.4,8.794e-05,2]
[351586210,1738648244085,-501.46877145,8.794e-05,2]
[351586211,1738648244095,-500.0,8.794e-05,2]
[351586212,1738648244105,-500.52825834,8.794e-05,2]
[351586213,1738648244115,-685.8,8.794e-05,2]
[351586214,1738648244125,-500.0,8.794e-05,2]
[351586215,1738648244134,-501.54154782,8.794e-05,2]
[351586216,1738648244144,-500.87220714,8.794e-05,2]
[351586217,1738648244153,-500.0,8.794e-05,2]
[351586218,1738648244163,-1638.64,8.794e-05,2]
[351586219,1738648244173,-500.55409117,8.794e-05,2]
[351586220,1738648244183,-500.0,8.794e-05,2]
[351586221,1738648244192,-500.56396794,8.794e-05,2]
[351586222,1738648244202,-501.25284158,8.794e-05,2]
[351586223,1738648244212,-310.90398247,8.794e-05,2]
[351586224,1738648244221,-741.59,8.794e-05,2]
[351586225,1738648244231,-957.72,8.794e-05,2]
[351586226,1738648244240,-437.10188684,8.794e-05,2]
[351586227,1738648244257,-64.53893824,8.794e-05,2]
[351586228,1738648244266,-500.0,8.794e-05,2]
[351586229,1738648244276,-501.158689,8.794e-05,2]
[351586230,1738648244286,-500.0,8.794e-05,2]
[351586231,1738648244295,-503.68273372,8.794e-05,2]
[351586232,1738648244306,-388.11963904,8.794e-05,2]
[351586240,1738648246058,-500.0,8.793e-05,2]
[351586241,1738648246072,-2365.51,8.793e-05,2]
[351586242,1738648246083,-1330.74036096,8.794e-05,2]
[351586243,1738648246093,-500.0,8.794e-05,2]
[351586244,1738648246103,-500.00163332,8.794e-05,2]
[351586245,1738648246112,-323.77637856,8.794e-05,2]
[351586246,1738648246125,-353.92362144,8.794e-05,2]
[351586247,1738648246135,-500.0,8.794e-05,2]
[351586248,1738648246145,-501.12853799,8.794e-05,2]
[351586249,1738648246155,-500.97192793,8.794e-05,2]
[351586250,1738648246165,-501.52979696,8.794e-05,2]
[351586251,1738648246175,-500.0,8.794e-05,2]
[351586252,1738648246186,-555.21,8.794e-05,2]
[351586253,1738648246196,-500.0,8.794e-05,2]
[351586254,1738648246206,-500.0,8.794e-05,2]
[351586255,1738648246216,-500.0,8.794e-05,2]
[351586256,1738648246227,-516.41291105,8.794e-05,2]
[351586257,1738648246237,-1124.23980099,8.794e-05,2]
[351586258,1738648246249,-200.92019901,8.794e-05,2]
[351586259,1738648246259,-430.72981043,8.794e-05,2]
[351586260,1738648246330,-70.21107128,8.794e-05,2]
[351586261,1738648246340,-500.0,8.794e-05,2]
[351586262,1738648246350,-134.14397718,8.794e-05,2]
[351586263,1738648246362,-371.29792101,8.794e-05,2]
[351586264,1738648246372,-22.00195619,8.794e-05,2]
[351586265,1738648246383,-615.78314567,8.794e-05,2]
[351586266,1738648246393,-895.08,8.794e-05,2]
[351586267,1738648246403,-500.0,8.794e-05,2]
[351586268,1738648246412,-500.0,8.794e-05,2]
[351586269,1738648246423,-500.0,8.794e-05,2]
[351586270,1738648246433,-500.0,8.794e-05,2]
[351586271,1738648246443,-1958.32,8.794e-05,2]
[351586272,1738648246453,-500.0,8.794e-05,2]
[351586273,1738648246464,-500.0,8.794e-05,2]
[351586274,1738648246474,-500.0,8.794e-05,2]
[351586275,1738648246484,-503.96618755,8.794e-05,2]